Cogmind - Beta 16 *** ADVENTURER MODE // 2025.12.22 @ 03:10:07 Player: Lukysa Result: Destroyed by P-60 Hacker with Shock Rifle Performance ------------- Evolutions (0) 0 Regions Visited (3) 600 Robots Destroyed (32) 160 Value Destroyed (873) 873 Prototype IDs (1) 20 Alien Tech Used (0) 0 Bonus (0) 0 TOTAL SCORE: 1653 Bonus ------- None Cogmind --------- Core Integrity 0/250 Matter 284/300 Energy 146/265 System Corruption 3% Temperature Cool (17) Movement Flying (115) Ox1 Location -9/Recycling Parts ------- > --- POWER (1) -------- Improved Ion Engine > --- PROPULSION (2) --- VTOL Module > --- UTILITY (2) ------ Weight Redist. System Targeting Computer > --- WEAPON (2) ------- Battle Rifle Battle Cannon > --- INVENTORY (5) ---- Large Matter Pod (150) Battle Rifle Grenade Launcher Mining Claw Peak State ------------ > --- POWER ------------ Improved Ion Engine > --- PROPULSION ------- VTOL Module VTOL Module > --- UTILITY ---------- Weight Redist. System Targeting Computer > --- WEAPON ----------- Battle Rifle Battle Cannon > --- INVENTORY -------- Large Matter Pod Battle Rifle Grenade Launcher Mining Claw [Rating: 13] Favorites ----------- Power Light Ion Engine Engine Light Ion Engine Propulsion Hover Unit Hover Unit Hover Unit Flight Unit Flight Unit Utility Weight Redist. System Device Weight Redist. System Storage Large Matter Pod Processor Targeting Computer Weapon Assault Rifle Energy Gun Particle Gun Energy Cannon Advanced Beam Cannon Ballistic Gun Assault Rifle Ballistic Cannon Battle Cannon Launcher Grenade Launcher Build | -11 -10 -10 -9 ------- Run | Yrd Mat Sub Rec Slots Evolved . | . . . . Power . | . . . . Propulsion . | . . . . Utility . | . . . . Weapon . | . . . . Parts Attached 40 | 3 22 7 8 Power 10 | . 6 1 3 Engine 10 | . 6 1 3 Core . | . . . . Reactor . | . . . . Propulsion 10 | . 5 2 3 Treads . | . . . . Leg . | . . . . Wheel . | . . . . Hover 4 | . 4 . . Flight 6 | . 1 2 3 Utility 8 | 1 6 1 . Device 2 | . 2 . . Storage 5 | 1 4 . . Processor 1 | . . 1 . Hackware . | . . . . Protection . | . . . . Artifact . | . . . . Weapon 12 | 2 5 3 2 Energy Gun 1 | . 1 . . Energy Cannon 2 | . 1 1 . Ballistic Gun 6 | 2 2 1 1 Ballistic Cannon 1 | . . 1 . Launcher 2 | . 1 . 1 Special Weapon . | . . . . Impact Weapon . | . . . . Slashing Weapon . | . . . . Piercing Weapon . | . . . . Special Melee Weapon . | . . . . Unidentified Prototypes 1 | . 1 . . Parts Lost 5 | . . 3 2 Power . | . . . . Propulsion 5 | . . 3 2 Utility . | . . . . Weapon . | . . . . Highest Loss Streak 2 | . . 1 2 To Critical Strikes . | . . . . Average Backups 4 | 2 4 4 4 Power . | 1 . . . Propulsion 1 | 1 1 1 . Utility . | . . 1 1 Weapon 2 | . 1 2 3 Tool/Special . | . . . . Unused Backups 7 | . 5 . 2 Power 1 | . 1 . . Propulsion 2 | . 2 . . Utility 1 | . 1 . . Weapon 3 | . 1 . 2 Tool/Special . | . . . . Average Slot Usage (%) 93 | . 83 99 97 Engine 12 | . 11 14 13 Hover 18 | . 22 21 . Flight 7 | . . 6 26 Device 11 | . 8 14 14 Storage 4 | . 11 . . Processor 8 | . . 14 14 Energy Cannon 1 | . 2 1 . Ballistic Gun 20 | . 23 20 13 Ballistic Cannon 2 | . . 1 14 Launcher 2 | . . 5 . Peak Build Rating 13 | 3 10 10 13 Average Rating 8 | 1 7 8 10 On Entrance 5 | . 2 8 10 Avg Prop Armor Cover (%) . | . . . . Naked Turns . | . . . . Heaviest Build 15 | 3 14 15 12 Greatest Support 18 | 3 18 18 14 Greatest Overweight (x) 1 | . 1 1 . Average Overweight (x) . | . . . . Largest Inventory Capacity 8 | 8 8 5 5 Average Capacity 5 | 5 5 5 5 Most Carried 5 | 5 5 5 5 Average Carried 4 | 2 4 4 4 Final Capacity 5 | 5 5 5 5 Final Carried 5 | 5 5 5 4 Class Distribution -------------------- 56% | Mutant 41% | Scavenger-Mutant Dominant Class ---------------- Mutant | -10/Materials Scavenger-Mutant | -10/Subcaves Mutant | -9/Recycling Resources | -11 -10 -10 -9 ----------- Run | Yrd Mat Sub Rec Matter Collected 1407 | 227 604 201 375 Remotely . | . . . . Salvage Created 1339 | . 634 117 588 Parts 79 | . 45 12 22 Haulers Intercepted 2 | . 2 . . Recyclers Shooed 2 | . 2 . . Parts Field Recycled . | . . . . Retrieved Matter . | . . . . Parts Self-Destructed 13 | . . 13 . Prevented . | . . . . Parts Restored . | . . . . Kills | -11 -10 -10 -9 ------- Run | Yrd Mat Sub Rec Combat Hostiles Destroyed 24 | . 11 7 6 Guns 7 | . 3 4 . Cannons 8 | . 4 . 4 AOE 9 | . 4 3 2 Classes Destroyed 9 | . 5 1 3 Hauler 2 | . 2 . . Recycler 4 | . 2 . 2 Watcher 2 | . 2 . . Swarmer 6 | . 3 3 . Grunt 8 | . 8 . . Sentry 4 | . . . 4 Hunter 1 | . . . 1 Programmer 1 | . . . 1 Subdweller 4 | . . 4 . Best Kill Streak 6 | . 6 3 4 Combat Bots Only 5 | . 5 3 4 Max Kills in Single Turn 3 | . 3 2 1 Gunslinging 1 | . . 1 . Exploded 3 | . 3 1 1 Melee . | . . . . Uniques/NPCs Destroyed . | . . . . Combat | -11 -10 -10 -9 -------- Run | Yrd Mat Sub Rec Hostile Shots Fired 112 | . 45 39 28 Missed 39 | . 17 12 10 Hits 73 | . 28 27 18 Projectile 73 | . 28 27 18 Critical Strikes 5 | . 2 2 1 Damage Taken 794 | . 258 324 212 Core 251 | . 99 86 66 Absorbed by Shields . | . . . . Ignored by Resistances 236 | . 79 96 61 Core Remaining (%) 100 | 100 . . . Volleys Fired 85 | . 36 28 21 Largest 2 | . 2 2 2 Hottest 110 | . 88 110 63 Shots Fired 165 | . 69 54 42 Gun 106 | . 55 33 18 Cannon 45 | . 12 12 21 Launcher 14 | . 2 9 3 Special . | . . . . Kinetic 129 | . 54 36 39 Thermal 22 | . 13 9 . Explosive 14 | . 2 9 3 Electromagnetic . | . . . . Robot Hit Streak 20 | . 19 18 20 Robot Miss Streak 2 | . 2 1 1 Penetration Max . | . . . . Secondary Targets 2 | . 1 1 . Max Gunslinging Chain 1 | . 1 1 . Shots Hit Robots 126 | . 49 40 37 Core Hits 55 | . 24 11 20 Critical Kills . | . . . . Critical Parts Destroyed . | . . . . Critical Strikes 2 | . . . 2 Blast 2 | . . . 2 Melee Attacks . | . . . . Impact . | . . . . Slashing . | . . . . Piercing . | . . . . Sneak Attacks . | . . . . Combat Hostiles . | . . . . Follow-up Attacks . | . . . . Damage Inflicted 2630 | . 907 988 735 Guns 1006 | . 479 297 230 Cannons 872 | . 205 246 421 Explosions 748 | . 219 445 84 Melee . | . . . . Ramming 4 | . 4 . . Kinetic 1427 | . 479 297 651 Thermal 451 | . 205 246 . Explosive 748 | . 219 445 84 Electromagnetic . | . . . . Impact . | . . . . Slashing . | . . . . Piercing . | . . . . Highest Corruption 2 | . 1 1 2 Average Corruption 1 | . 1 1 1 Corruption Purged . | . . . . Corruption Blocked . | . . . . Effects 10 | . 2 5 3 Message Errors 1 | . . 1 . Matter Fused 2 | . . 1 1 Heat Flow Errors 1 | . . . 1 Energy Discharges 2 | . . 1 1 Parts Rejected 1 | . . 1 . Data Loss (minor) 1 | . . 1 . Misfires 1 | . 1 . . Weapon Failures 1 | . 1 . . Overload Shots . | . . . . Overflow Damage 12 | . . . 12 Projectiles 12 | . . . 12 Explosions . | . . . . Melee . | . . . . Knockbacks . | . . . . Impact . | . . . . Kinetic . | . . . . Secondary . | . . . . Self-Inflicted Damage 35 | . 2 33 . Shots 2 | . . 2 . Rammed 1 | . 1 . . Targets Rammed 1 | . 1 . . Kicked . | . . . . Crushed . | . . . . Highest Temperature 262 | . 262 4 206 Average Temperature 81 | . 87 2 77 Received Heat Transfer 330 | . 216 51 63 Effects 1 | . 1 . . Energy Bleed 1 | . 1 . . Siege Activations . | . . . . Martial Activations . | . . . . Shielding Activations . | . . . . Robots Disrupted . | . . . . Combat Hostiles . | . . . . Robots Corrupted . | . . . . Combat Hostiles . | . . . . Parts Fried . | . . . . Impact Corruptions . | . . . . Robots Melted . | . . . . Combat Hostiles . | . . . . Parts Melted . | . . . . Heat Transferred 703 | . 370 333 . Parts Sabotaged . | . . . . Parts Stolen . | . . . . Parts Stripped . | . . . . Power Chain Reactions . | . . . . Alert | -11 -10 -10 -9 ------- Run | Yrd Mat Sub Rec Maximum Alert Level . | . . . . Low Security (%) 100 | 100 100 . 100 Level 1 . | . . . . Level 2 . | . . . . Level 3 . | . . . . Level 4 . | . . . . Level 5 . | . . . . High Security . | . . . . Max Security . | . . . . Peak Influence 154 | . 154 . 63 Initial . | . . . . Average 46 | . 58 . 21 Influence Increases 555 | . 321 70 164 Destroy 0b10 Robot/C 400 | . 220 60 120 Destroy 0b10 Robot/NC 60 | . 30 . 30 Destroy Leader 58 | . 48 10 . Successful Hack 4 | . 4 . . Destroy Structure 33 | . 19 . 14 Influence Decreases 492 | . 311 80 101 Entered New Map 6 | . . 6 . Time Decay 312 | . 167 64 81 Lost Part 30 | . . 10 20 Purge Threat 144 | . 144 . . Squads Dispatched 1 | . 1 . . Investigation 1 | . 1 . . Extermination . | . . . . Reinforcement . | . . . . Assault . | . . . . Garrison . | . . . . Intercept . | . . . . Searches Triggered . | . . . . Construction Impeded . | . . . . Haulers Reinforced . | . . . . Active Scanning Responses . | . . . . Cargo Convoy Interrupts . | . . . . Stealth | -11 -10 -10 -9 --------- Run | Yrd Mat Sub Rec Distress Signals . | . . . . Communications Jammed . | . . . . Distress Signals . | . . . . Times Spotted 27 | . 12 8 7 Peak Tracking Total 5 | . 5 3 3 Tactical Retreats . | . . . . Traps | -11 -10 -10 -9 ------- Run | Yrd Mat Sub Rec Traps Triggered 3 | . 3 . . Indirectly . | . . . . Trap Hack Attempts . | . . . . Triggered . | . . . . Disarmed . | . . . . Reprogrammed . | . . . . Reused . | . . . . Traps Extracted . | . . . . Installed . | . . . . Triggered . | . . . . Machines | -11 -10 -10 -9 ---------- Run | Yrd Mat Sub Rec Machines Disabled . | . . . . Max in Single Turn . | . . . . Machines Repaired . | . . . . Machines Dismantled . | . . . . Machines Sabotaged . | . . . . Overloaded Fab Kills . | . . . . Hacking | -11 -10 -10 -9 --------- Run | Yrd Mat Sub Rec Machines Accessed 11 | . 7 1 3 Terminals 6 | . 6 . . Fabricators . | . . . . Repair Stations . | . . . . Recycling Units 4 | . 1 . 3 Scanalyzers . | . . . . Garrison Access . | . . . . Total Hacks 25 | . 14 5 6 Successful 15 | . 7 5 3 Failed 10 | . 7 . 3 Catastrophic 1 | . 1 . . Database Lockouts . | . . . . Manual 3 | . 3 . . Terminals 12 | . 12 . . Fabricators . | . . . . Repair Stations . | . . . . Recycling Units 8 | . 2 . 6 Scanalyzers . | . . . . Garrison Access . | . . . . Terminal Hacks 10 | . 5 5 . Record 5 | . . 5 . Alert Level 1 | . 1 . . Unreport Threat 1 | . 1 . . Hauler Manifests 1 | . 1 . . Zone Layout 2 | . 2 . . Fabricator Hacks . | . . . . Repair Station Hacks . | . . . . Recycling Unit Hacks 5 | . 2 . 3 Report Inventory 4 | . 1 . 3 Retrieve Components 1 | . 1 . . Scanalyzer . | . . . . Garrison Access Hacks . | . . . . Unauthorized Hacks . | . . . . Terminals . | . . . . Fabricators . | . . . . Repair Stations . | . . . . Recycling Units . | . . . . Scanalyzers . | . . . . Garrison Access . | . . . . Data Cores Recovered . | . . . . Used . | . . . . Hacking Detections 4 | . 3 . 1 Full Trace Events 2 | . 1 . 1 Feedback Events . | . . . . Feedback Blocked . | . . . . Robot Schematics Acquired . | . . . . Robots Built . | . . . . Authchips . | . . . . Time . | . . . . Total Robot Build Rating . | . . . . Part Schematics Acquired . | . . . . Parts Built . | . . . . Authchips . | . . . . Time . | . . . . Total Part Build Rating . | . . . . Part Studies Acquired . | . . . . Parts Repaired . | . . . . Time . | . . . . Parts Recycled . | . . . . Recycled Matter . | . . . . Retrieved Matter . | . . . . Retrieved Components 3 | . 3 . . Parts Scanalyzed . | . . . . Part Schematics Acquired . | . . . . Parts Damaged . | . . . . Bothacking | -11 -10 -10 -9 ------------ Run | Yrd Mat Sub Rec Used RIF Installer . | . . . . Robots Hacked . | . . . . Non-combat . | . . . . Combat . | . . . . Robot Hacks Applied . | . . . . Relay Couplers Released . | . . . . Fabnet Peak Effective % . | . . . . Robots Rewired . | . . . . Allies Hacked . | . . . . Hacks Repelled . | . . . . Allies | -11 -10 -10 -9 -------- Run | Yrd Mat Sub Rec Total Allies . | . . . . Largest Group . | . . . . Highest-Rated Group . | . . . . Highest-Rated Ally . | . . . . Total Orders . | . . . . Ally Attacks . | . . . . Total Damage . | . . . . Kills . | . . . . Allies Corrupted . | . . . . Allies Melted . | . . . . Intel | -11 -10 -10 -9 ------- Run | Yrd Mat Sub Rec Active Infowar (turns) . | . . . . Robot Analysis Total . | . . . . Derelict Logs Recovered . | . . . . Drone Launches . | . . . . Drone Recoveries . | . . . . Exploration | -11 -10 -10 -9 ------------- Run | Yrd Mat Sub Rec Turns Passed 1453 | 36 521 691 205 Spaces Moved 1838 | 47 639 802 350 Core 130 | 47 83 . . Treads . | . . . . Legs . | . . . . Wheels . | . . . . Hover 1181 | . 527 654 . Flight 527 | . 29 148 350 Fastest Speed 32 | 50 40 37 32 Average Speed 50 | 50 54 52 35 Slowest Speed 120 | 50 116 120 37 Overloaded Moves . | . . . . Propulsion Burnouts . | . . . . Robots Hopped 2 | . . . 2 Potential Cave-ins . | . . . . Cave-ins Triggered . | . . . . Exploration Rate (%) 41 | 3 74 34 56 Regions Visited 3 Branch Regions 2 Pre-discovered Areas 2 | . . 2 . Known Exits Taken . | . . . . Unknown Exits Taken 3 | 1 1 1 . Scrap Searched 2 | . . 2 . Spaces Dug . | . . . . Terrain Destroyed 96 | . 18 59 19 Melee . | . . . . Projectile 1 | . . . 1 AOE 95 | . 18 59 18 Terrain Rammed . | . . . . Walls Destroyed . | . . . . Machines Disabled . | . . . . Actions | -11 -10 -10 -9 --------- Run | Yrd Mat Sub Rec Total 2205 | 59 741 1016 389 Wait 169 | 2 5 161 1 Move 1832 | 46 638 801 347 Hop 1 | . . . 1 Pick Up 25 | 6 9 7 3 Fast Attach 29 | 2 18 4 5 Attach 8 | 1 3 3 1 Detach 3 | 1 2 . . Swap 15 | . 8 5 2 Drop 37 | 1 21 7 8 Fire 85 | . 36 28 21 Melee . | . . . . Ram 1 | . 1 . . Kick . | . . . . Crush . | . . . . Escape Stasis . | . . . . Rewire . | . . . . Trap . | . . . . Miscellaneous . | . . . . Route ------- -11/Scrapyard -10/Materials (discovered 3 exits: [*Mat x2] / *Sub) -10/Subcaves (discovered 3 exits: [*Mat x2] / *Rec) -9/Recycling History --------- Turn | Location | Event 9 | -11/Scrapyard | Discovered new exit (range 16) 37 | -11/Scrapyard | Entered Materials 272 | -10/Materials | Discovered new exit (range 8) 328 | -10/Materials | Build established: Mutant 509 | -10/Materials | Discovered new exit (range 12) 535 | -10/Materials | Discovered new exit (range 7) 558 | -10/Materials | Entered Subcaves 559 | -10/Subcaves | Approached by a straggling Scientist 587 | -10/Subcaves | Discovered new exit (range 15) 688 | -10/Subcaves | Ambushed by Subdwellers from Twisted Machinery 705 | -10/Subcaves | Core integrity fell below 50% 712 | -10/Subcaves | Discovered new exit (range 14) 807 | -10/Subcaves | Build established: Scavenger-Mutant 851 | -10/Subcaves | Disturbed a concealed Subdweller 859 | -10/Subcaves | Ambushed by Subdweller buried in earth 964 | -10/Subcaves | Visited Clippyterm 965 | -10/Subcaves | Learned location of Extension (-5) 965 | -10/Subcaves | Learned location of Section 7 (-2) 1051 | -10/Subcaves | Shifting Twisted Machinery released Battle Rifle 1055 | -10/Subcaves | Discovered new exit (range 10) 1057 | -10/Subcaves | A swath of the cavern ceiling suddenly collapsed 1249 | -10/Subcaves | Entered Recycling 1250 | -9/Recycling | Met a Zionite searching for Scraptown 1324 | -9/Recycling | Core integrity fell below 20% 1392 | -9/Recycling | Build established: Mutant 1454 | -9/Recycling | Destroyed by P-60 Hacker with Shock Rifle Last Messages --------------- Matter reserves: 0 Inventory: Empty 01417_ R-06 Scavenger collects Flight Unit. 01423_ Y-45 Defender springs to life. 01425_ VTOL Module destroyed. 01427_ Y-45 Defender destroyed. 01432_ Y-45 Defender Lgt. Treads blasted off. 01432_ Y-45 Defender destroyed. 01436_ Acquired 29 matter. 01439_ Dropped Lgt. Ion Engine. 01440_ Acquired Imp. Ion Engine. 01441_ Acquired 10 matter. 01450_ H-55 Commando springs to life. 01450_ Penetrated by Slug. 01450_ VTOL Module destroyed. 01450_ H-55 Commando Carbon-fiber Leg blasted off. 01450_ H-55 Commando destroyed. 01450_ P-60 Hacker springs to life. 01453_ P-60 Hacker destroyed. Map ----- +----------------------------------------------------+ | #????????????????????????????????????????????????? | | #????????????????????????????????????????????????? | | ?????????????????????????????????????????????????? | | ##???????????????????????????????????????????????? | | #???????????????????????????????????????????????? | | #???????????????????????????????????????????????? | | #???????????????????????????????????????????????? | | #???????????????????????????????????????????????? | | #???????????????????????????????????????????????? | | #???????????????????????????????????????????????? | | #???????????????????????????????????????????????? | | #???????????????????????????????????????????????? | | ##???????????????????????????????????????????????? | | ??????????????????????????????????? ?????????????? | | ??#####???????????????????????????? ?????????????? | | ??#!!!#???????????????????????????? ?????????????? | | ###! !#######+#####???????????????? ?????????????? | | ????????????????# ?????????????? | | ????????????????????# #????????????? | | ???????????##########???# #????????????? | | #?##+##+#####??# !Y p +??? #????????????? | | #?# #??# #???# #????????????? | | #?# #??# % #???# #????????????? | | ### #??# t kh#???# #????????????? | | + ####a g ##### ######???????? | | ## + ##!%=@t[ *+ +???????? | | ## # ## r%] ### ####????????? | | ## # ##[% !bp r### #???????????? | | ## + +!!udlb #! #???????????? | | ####+#####+# ##+#######!! ###?????????? | | #??#?#???# #?#!! # ###???????? | | #??# #T"?# #?### +???????? | | #### # "## #???# % ##???????? | | #####! #????????? | | %=! #????????? | | * #????????? | | *! % #????????? | | %= #????????? | | ######+#### # #????????? | | #?????????####+##????????? | | #### ##"Y"## #????????????????????????? | | #??? ##"""?# ###??????????????????????? | | ???? #####?# [#??????????????????????? | | ???? ??????# %* #??????????????????????? | | ???? ???????# =#??????????????????????? | | ????????????????# % ###??????????????????????? | | ????????????#####+##+## #????????????????????????? | | ????????????# # ####?????????????????????? | | ????????????# """ """ + +?????????????????????? | | ????????????# "Y" """ ######?????????????????????? | +----------------------------------------------------+ Best States ------------- Heat Dissipation 35 Energy Generation 15 Energy Capacity 450 Matter Stores 450 Matter Capacity 450 Sight Range 16 Terrain Scan Density 10 Additional Mass Support 6 Resistance: KI 20 Resistance: TH 20 Resistance: EX 20 Resistance: EM 20 Resistance: I 20 Resistance: S 20 Resistance: P 20 Evasion (%) 63 Targeting Accuracy 5 Offensive Hacking 10 Item Schematics ----------------- None Robot Schematics ------------------ None Fabricated ------------ Nothing Repaired ---------- Nothing Studied --------- None Alien Tech Used ----------------- None Achievements -------------- Do Not Disturb I Have A Map? Challenges ------------ None Game ------ Seed ChargeExpertStabilizer Manual? 0 Play Time 00:41:02 Cumulative 74.7 hours Start 2025.12.22 @ 00:41:00 End 2025.12.22 @ 03:10:07 Sessions 1 Manual Loads 0 Difficulty Adventurer Special Mode None Game No. 42 Rogue 29 Adventurer 13 Explorer 0 Win Type - Total 0 Types 0/0/0/0/0/0/0/0/0/0 Lore% 20 Gallery% 37 Achievement% 24 Wizard Run 0 Options --------- Layout 1 ASCII 0 Keyboard 0 Movement Mouse Keybinds 0 Fullscreen 1 Font 32/SmallcapsGlow Map View 50x35 Zoom Use 0% Tactical HUD 1 Map Filters NONE Filters NONE Steam 1 RUN: e140e424-fc41-4b70-b3ff-e9bc957647e5